bitfinex/quotes_SOLUSD_20241218
["timestamp","ask_amount","ask_price","bid_price","bid_amount"]
[1734507320047,11.36352557,215.48,215.4,11.36352557]
[1734507320245,11.36352557,215.48,215.41,17.49112557]
[1734507320461,11.36352557,215.49,215.42,11.36352557]
[1734507320667,11.36352557,215.48,215.41,17.49112557]
[1734507321666,11.36352557,215.49,215.42,11.36352557]
[1734507322550,11.36352557,215.54,215.46,11.36352557]
[1734507323049,11.36352557,215.53,215.46,11.36352557]
[1734507323457,11.36352557,215.54,215.46,11.36352557]
[1734507324040,12.52332557,215.55,215.48,11.36352557]
[1734507324242,11.36352557,215.54,215.47,11.36352557]
[1734507324766,11.36352557,215.59,215.52,11.36352557]
[1734507324950,11.36352557,215.59,215.48,0.69608067]
[1734507324951,11.36352557,215.6,215.53,11.36352557]
[1734507325264,11.36352557,215.59,215.52,11.36352557]
[1734507325837,11.36352557,215.59,215.51,11.36352557]
[1734507327072,11.36352557,215.59,215.52,11.36352557]
[1734507328355,11.36352557,215.58,215.51,11.36352557]
[1734507331186,11.36352557,215.58,215.5,11.36352557]
[1734507331491,11.36352557,215.58,215.51,11.36352557]
[1734507332690,11.36352557,215.59,215.52,11.36352557]
[1734507332857,11.36352557,215.58,215.51,11.36352557]
[1734507333051,11.36352557,215.59,215.52,11.36352557]
[1734507333249,1.83432187,215.65,215.49,6.1276]
[1734507333250,11.36352557,215.65,215.58,11.36352557]
[1734507333448,11.36352557,215.66,215.59,11.36352557]
[1734507333762,11.36352557,215.67,215.6,11.36352557]
[1734507333959,11.36352557,215.68,215.6,11.36352557]
[1734507334158,11.36352557,215.69,215.62,11.36352557]
[1734507334379,11.36352557,215.68,215.61,11.36352557]
[1734507334747,11.36352557,215.69,215.62,11.36352557]
[1734507335075,11.36352557,215.7,215.62,11.36352557]
[1734507335271,11.36352557,215.69,215.62,11.36352557]
[1734507335851,11.36352557,215.74,215.66,11.36352557]
[1734507336052,11.36352557,215.7,215.62,11.36352557]
[1734507336267,1.5999,215.78,215.59,6.3298]
[1734507336268,3.4758,215.77,215.59,6.3298]
[1734507337288,11.36352557,215.67,215.59,6.3298]
[1734507337585,11.36352557,215.68,215.61,11.36352557]
[1734507337987,11.36352557,215.7,215.63,11.36352557]
[1734507338362,11.36352557,215.7,215.62,11.36352557]
[1734507338563,11.36352557,215.69,215.62,11.36352557]
[1734507339292,11.36352557,215.7,215.63,11.36352557]
[1734507340378,3.4758,215.77,215.62,11.36352557]
[1734507340379,11.36352557,215.69,215.62,11.36352557]
[1734507341062,11.36352557,215.7,215.63,11.36352557]
[1734507341378,11.36352557,215.71,215.64,11.36352557]
[1734507342876,11.36352557,215.69,215.62,11.36352557]
[1734507343075,11.36352557,215.7,215.63,11.36352557]
[1734507343283,11.36352557,215.71,215.64,11.36352557]
[1734507345207,11.36352557,215.66,215.59,6.3298]
[1734507345375,11.36352557,215.65,215.57,11.36352557]
[1734507345759,11.36352557,215.65,215.58,11.36352557]
[1734507346291,11.36352557,215.65,215.57,11.36352557]
[1734507346581,1.1591,215.67,215.6,11.36352557]
[1734507346763,11.36352557,215.66,215.59,11.36352557]
[1734507346963,11.36352557,215.65,215.58,11.36352557]
[1734507347868,11.36352557,215.65,215.54,7.6543]
[1734507347869,11.36352557,215.63,215.54,7.6543]
[1734507348101,11.36352557,215.59,215.52,11.36352557]
[1734507349068,11.36352557,215.6,215.53,11.36352557]
[1734507349269,11.36352557,215.61,215.54,11.36352557]
[1734507349996,11.36352557,215.6,215.53,11.36352557]
[1734507350378,11.36352557,215.59,215.52,11.36352557]
[1734507350572,11.36352557,215.61,215.54,11.36352557]
[1734507350791,3.4774,215.67,215.49,19.02422557]
[1734507350792,11.36352557,215.6,215.53,11.36352557]
[1734507353381,11.36352557,215.62,215.55,11.36352557]
[1734507353687,11.36352557,215.66,215.59,11.36352557]
[1734507354268,11.36352557,215.65,215.59,11.36352557]
[1734507354473,11.36352557,215.66,215.59,11.36352557]
[1734507354690,11.36352557,215.69,215.62,11.36352557]
[1734507354866,12.52252557,215.7,215.63,11.36352557]
[1734507356469,11.36352557,215.69,215.63,11.36352557]
[1734507356664,11.36352557,215.69,215.62,11.36352557]
[1734507356892,11.36352557,215.67,215.6,11.36352557]
[1734507357995,11.36352557,215.67,215.59,17.51792557]
[1734507358289,11.36352557,215.66,215.59,17.51792557]
[1734507358692,11.36352557,215.64,215.57,11.36352557]
[1734507361166,11.36352557,215.62,215.55,11.36352557]
[1734507361372,11.36352557,215.61,215.55,11.36352557]
[1734507361987,11.36352557,215.63,215.56,11.36352557]
[1734507362194,11.36352557,215.64,215.57,11.36352557]
[1734507363891,11.36352557,215.63,215.56,11.36352557]
[1734507366090,11.36352557,215.64,215.57,11.36352557]
[1734507367995,11.36352557,215.64,215.58,1.93615905]
[1734507370095,7.26509396,215.64,215.58,1.93615905]
[1734507370278,7.26509396,215.64,215.57,7.26509396]
[1734507370765,7.26509396,215.69,215.62,7.26509396]
[1734507371483,7.26509396,215.68,215.61,7.26509396]
[1734507372418,7.26509396,215.69,215.61,7.26509396]
[1734507373096,2.7799,215.73,215.63,7.26509396]
[1734507373293,7.26509396,215.7,215.63,7.26509396]
[1734507374395,7.26509396,215.7,215.63,9.20651523]
[1734507374572,7.26509396,215.7,215.63,7.26509396]
[1734507376007,7.26509396,215.7,215.63,9.20650913]
[1734507376312,7.26509396,215.7,215.63,7.26509396]
[1734507377182,7.26509396,215.66,215.61,1.94218285]
[1734507377384,7.26509396,215.64,215.6,1.94218285]
[1734507377603,7.26509396,215.64,215.59,1.94220118]
[1734507378677,7.26509396,215.63,215.59,1.94220118]
[1734507378894,7.26509396,215.61,215.59,1.94220118]
[1734507379121,7.26509396,215.6,215.59,1.94220118]
[1734507380114,11.35599704,215.6,215.59,1.94220118]
[1734507380986,11.35599704,215.6,215.52,1.94605998]
[1734507381185,11.35599704,215.58,215.52,1.94605998]
[1734507381705,11.48148704,215.57,215.52,1.94605998]
[1734507381890,11.48148704,215.57,215.51,1.94605998]
[1734507383917,0.12549,215.57,215.51,13.30205702]
[1734507384105,0.12549,215.57,215.52,1.94605998]
[1734507384299,11.35599704,215.56,215.49,11.35599704]
[1734507384499,1.1595,215.6,215.5,1.94454578]
[1734507384500,11.48148704,215.55,215.5,1.94454578]
[1734507384718,11.48148704,215.55,215.49,1.94454578]
[1734507384933,0.12549,215.53,215.49,1.94454578]
[1734507385146,0.12549,215.53,215.48,8.44294578]
[1734507385893,0.12549,215.53,215.48,6.4984]
[1734507386242,0.12549,215.53,215.47,11.35599704]
[1734507386243,11.35599704,215.53,215.47,11.35599704]
[1734507386528,11.35599704,215.53,215.48,1.94413768]
[1734507387903,11.35599704,215.54,215.48,1.94413768]
[1734507388604,11.35599704,215.56,215.49,11.35599704]
[1734507388993,11.35599704,215.54,215.47,11.35599704]
[1734507389198,11.35599704,215.53,215.48,1.9427747]
[1734507389722,0.12549,215.51,215.46,11.35599704]
[1734507389928,0.12549,215.52,215.47,13.2991256]
[1734507390131,0.12549,215.52,215.47,11.35599704]
[1734507390805,0.12549,215.53,215.48,1.94218378]
[1734507391018,0.12549,215.53,215.48,1.94219148]
[1734507391403,0.12549,215.53,215.46,11.35599704]
[1734507391610,0.12549,215.53,215.47,1.9420857]
[1734507392314,0.12549,215.53,215.47,11.35599704]
[1734507392909,0.12549,215.53,215.46,11.35599704]
[1734507393110,0.12549,215.53,215.47,1.94326268]
[1734507393330,1.1597,215.57,215.47,1.94326268]
[1734507393331,11.35599704,215.52,215.47,1.94326268]
[1734507393544,11.35599704,215.49,215.46,1.94326268]
[1734507393749,11.35599704,215.49,215.43,1.94367662]
[1734507393933,11.35599704,215.48,215.42,1.94367662]
[1734507394225,11.35599704,215.44,215.41,1.94367662]
[1734507394430,11.35599704,215.44,215.38,1.94367662]
[1734507394626,11.35599704,215.44,215.37,1.94367662]
[1734507394811,11.35599704,215.44,215.37,13.29967366]
[1734507395015,11.35599704,215.45,215.38,13.29967366]
[1734507395212,11.35599704,215.44,215.39,1.94367662]
[1734507395414,11.35599704,215.42,215.35,11.35599704]
[1734507395633,11.35599704,215.43,215.38,1.94407392]
[1734507395940,11.35599704,215.44,215.37,11.35599704]
[1734507396528,11.35599704,215.45,215.38,11.35599704]
[1734507397033,0.12549,215.44,215.38,11.35599704]
[1734507397543,0.12549,215.43,215.37,11.35599704]
[1734507399109,1.1603,215.46,215.34,1.571]
[1734507399110,11.35599704,215.46,215.39,11.35599704]
[1734507399339,11.35599704,215.48,215.41,11.35599704]
[1734507399544,11.35599704,215.49,215.42,11.35599704]
[1734507399710,11.48148704,215.48,215.41,11.35599704]
[1734507400929,11.35599704,215.47,215.4,11.35599704]
[1734507401136,11.35599704,215.47,215.36,0.69622935]
[1734507401137,11.35599704,215.47,215.39,11.35599704]
[1734507402213,11.35599704,215.46,215.39,11.35599704]
[1734507403034,1.6056,215.52,215.34,1.571]
[1734507403035,11.35599704,215.45,215.37,11.35599704]
[1734507403225,11.35599704,215.44,215.37,11.35599704]
[1734507403426,1.1602,215.48,215.35,11.35599704]
[1734507403427,11.35599704,215.42,215.35,11.35599704]
[1734507404649,11.48148704,215.41,215.34,11.35599704]
[1734507404811,0.12549,215.37,215.31,11.35599704]
[1734507405018,11.48148704,215.37,215.3,11.35599704]
[1734507405215,0.12549,215.37,215.34,11.35599704]
[1734507405431,11.35599704,215.42,215.35,11.35599704]
[1734507405642,12.96159704,215.44,215.37,11.35599704]
[1734507405848,21.1603,215.46,215.29,10.39580819]
[1734507406042,11.35599704,215.45,215.38,11.35599704]
[1734507406646,11.35599704,215.46,215.39,11.35599704]
[1734507407454,11.35599704,215.45,215.39,11.35599704]
[1734507407656,11.35599704,215.47,215.4,11.35599704]
[1734507408456,11.35599704,215.48,215.41,11.35599704]
[1734507409032,11.35599704,215.46,215.39,11.35599704]
[1734507409235,11.35599704,215.47,215.4,11.35599704]
[1734507410238,11.35599704,215.43,215.36,17.85039704]
[1734507410417,11.35599704,215.42,215.36,6.4944]
[1734507411538,1.1604,215.45,215.36,17.85039704]
[1734507411841,11.35599704,215.43,215.36,17.85039704]
[1734507415548,11.35599704,215.44,215.37,11.35599704]
[1734507415752,1.6056,215.49,215.4,11.35599704]
[1734507415753,11.35599704,215.47,215.4,11.35599704]
[1734507416156,11.35599704,215.48,215.41,11.35599704]
[1734507418354,11.35599704,215.46,215.38,11.35599704]
[1734507419037,11.35599704,215.42,215.36,6.4944]
[1734507419370,11.35599704,215.43,215.36,6.4944]
[1734507420239,11.35599704,215.43,215.36,17.85039704]
[1734507420458,11.35599704,215.47,215.4,11.35599704]
[1734507420761,11.35599704,215.48,215.41,11.35599704]
[1734507421260,11.35599704,215.5,215.42,11.35599704]
[1734507421567,11.35599704,215.5,215.43,11.35599704]
[1734507421859,11.35599704,215.5,215.42,11.35599704]
[1734507423267,11.35599704,215.49,215.41,11.35599704]
[1734507423841,11.35599704,215.53,215.45,11.35599704]
[1734507424160,11.35599704,215.53,215.38,21.06829704]
[1734507424161,11.35599704,215.53,215.46,11.35599704]
[1734507424862,11.35599704,215.53,215.45,11.35599704]
[1734507425360,11.35599704,215.5,215.43,11.35599704]
[1734507425535,11.35599704,215.51,215.43,11.35599704]
[1734507425732,11.35599704,215.53,215.45,11.35599704]
[1734507425959,11.35599704,215.54,215.47,11.35599704]
[1734507426159,11.35599704,215.55,215.47,11.35599704]
[1734507426353,1.1596,215.58,215.47,11.35599704]
[1734507426550,11.35599704,215.54,215.47,11.35599704]
[1734507426865,1.1596,215.58,215.46,11.35599704]
[1734507426866,11.35599704,215.53,215.46,11.35599704]
[1734507427041,1.5695,215.59,215.45,6.417]
[1734507427042,11.35599704,215.51,215.45,6.417]
[1734507427239,11.35599704,215.5,215.42,11.35599704]
[1734507427435,11.35599704,215.5,215.43,1.94613254]
[1734507428136,11.35599704,215.5,215.42,11.35599704]
[1734507428341,11.35599704,215.46,215.4,6.417]
[1734507428693,11.35599704,215.44,215.37,13.30423475]
[1734507428847,11.35599704,215.47,215.4,11.35599704]
[1734507429363,11.35599704,215.48,215.4,11.35599704]
[1734507429550,11.35599704,215.49,215.42,11.35599704]
[1734507429768,1.5695,215.5,215.43,11.35599704]
[1734507430170,11.35599704,215.49,215.42,11.35599704]
[1734507430369,11.35599704,215.48,215.41,11.35599704]
[1734507430555,11.35599704,215.47,215.4,11.35599704]
[1734507430739,11.35599704,215.47,215.41,1.95616409]
[1734507430938,11.35599704,215.45,215.41,1.95616409]
[1734507431162,11.35599704,215.43,215.36,13.31248757]
[1734507431366,11.35599704,215.43,215.37,1.95649053]
[1734507432070,11.35599704,215.39,215.33,6.417]
[1734507432367,11.35599704,215.39,215.33,8.37637892]
[1734507432544,11.35599704,215.39,215.33,6.417]
[1734507432945,11.35599704,215.4,215.33,19.73281016]
[1734507433149,11.35599704,215.4,215.34,1.95984571]
[1734507433356,11.35599704,215.4,215.33,13.31581016]
[1734507433585,11.35599704,215.38,215.33,1.95981312]
[1734507434054,11.35599704,215.37,215.33,1.95981312]
[1734507434257,0.12549,215.36,215.33,1.95981312]
[1734507434772,0.12549,215.37,215.33,1.95981312]
[1734507434963,0.12549,215.37,215.34,11.35599704]
[1734507435145,0.12549,215.37,215.35,11.35599704]
[1734507435549,11.35599704,215.43,215.36,11.35599704]
[1734507435775,11.35599704,215.44,215.37,11.35599704]
[1734507436271,11.48148704,215.43,215.36,11.35599704]
[1734507436565,0.12549,215.43,215.37,11.35599704]
[1734507437155,11.35599704,215.45,215.38,11.35599704]
[1734507437355,1.5695,215.48,215.4,11.35599704]
[1734507437356,11.35599704,215.47,215.4,11.35599704]
[1734507437860,12.92549704,215.48,215.41,11.35599704]
[1734507438059,1.5695,215.48,215.42,11.35599704]
[1734507438467,0.12549,215.47,215.42,11.35599704]
[1734507440759,0.12549,215.48,215.42,11.35599704]
[1734507441379,11.35599704,215.52,215.44,11.35599704]
[1734507441583,0.12549,215.51,215.44,11.35599704]
[1734507441881,0.12549,215.51,215.45,11.35599704]
[1734507442070,0.12549,215.51,215.44,11.35599704]
[1734507442257,0.12549,215.51,215.45,1.96820546]
[1734507442477,0.12549,215.51,215.44,11.35599704]
[1734507442663,0.12549,215.51,215.45,13.32402662]
[1734507442858,0.12549,215.51,215.45,11.35599704]
[1734507443455,0.12549,215.51,215.44,11.35599704]
[1734507443653,0.12549,215.51,215.45,1.96810871]
[1734507444674,11.35599704,215.51,215.45,1.96810871]
[1734507444849,11.35599704,215.51,215.44,11.35599704]
[1734507445562,11.35599704,215.51,215.43,11.35599704]
[1734507446369,11.35599704,215.47,215.4,11.35599704]
[1734507446580,11.35599704,215.47,215.41,1.96816696]
[1734507447961,11.35599704,215.45,215.38,11.35599704]
[1734507448278,0.12549,215.38,215.31,6.296]
[1734507448454,0.12549,215.38,215.34,11.35599704]
[1734507448659,1.5551,215.44,215.35,1.96969087]
[1734507448884,0.12549,215.43,215.34,1.96969087]
[1734507449175,0.12549,215.43,215.38,11.35599704]
[1734507449376,11.35599704,215.45,215.38,11.35599704]
[1734507449377,0.12549,215.44,215.38,11.35599704]
[1734507450575,0.12549,215.43,215.37,11.35599704]
[1734507450969,11.48148704,215.43,215.35,11.35599704]
[1734507451289,11.48148704,215.43,215.36,13.32620428]
[1734507451583,11.48148704,215.43,215.36,11.35599704]
[1734507452090,11.35599704,215.4,215.33,11.35599704]
[1734507452261,11.35599704,215.39,215.32,11.35599704]
[1734507452584,7.14780603,215.47,215.33,1.97075135]
[1734507452585,11.35599704,215.38,215.33,1.97075135]
[1734507452760,11.35599704,215.38,215.31,11.35599704]
[1734507452959,11.35599704,215.39,215.32,13.32708227]
[1734507453156,11.35599704,215.39,215.32,11.35599704]
[1734507453879,11.35599704,215.4,215.32,11.35599704]
[1734507454067,11.35599704,215.39,215.29,0.69659118]
[1734507454272,11.35599704,215.4,215.32,11.35599704]
[1734507454770,11.35599704,215.38,215.31,11.35599704]
[1734507454974,11.35599704,215.36,215.29,11.35599704]
[1734507455156,11.35599704,215.36,215.3,1.97051061]
[1734507455582,0.12549,215.35,215.29,11.35599704]
[1734507455960,1.1606,215.4,215.27,11.35599704]
[1734507455961,0.12549,215.33,215.27,11.35599704]
[1734507456162,0.12549,215.33,215.26,17.65199704]
[1734507457084,0.12549,215.33,215.27,11.35599704]
[1734507459168,11.35599704,215.33,215.26,17.65199704]
[1734507460961,11.35599704,215.36,215.29,11.35599704]
[1734507461478,11.35599704,215.38,215.31,11.35599704]
[1734507461688,1.1606,215.4,215.29,11.35599704]
[1734507461689,11.35599704,215.36,215.29,11.35599704]
[1734507462176,11.35599704,215.36,215.3,11.35599704]
[1734507463387,0.12549,215.35,215.3,11.35599704]
[1734507463892,11.35599704,215.38,215.31,11.35599704]
[1734507464076,11.35599704,215.39,215.32,11.35599704]
[1734507464689,11.48148704,215.38,215.32,11.35599704]
[1734507465485,11.48148704,215.38,215.31,11.35599704]
[1734507465870,0.12549,215.36,215.33,11.35599704]
[1734507466073,0.12549,215.36,215.32,11.35599704]
[1734507466386,0.12549,215.36,215.31,11.35599704]
[1734507466788,0.12549,215.36,215.32,11.35599704]
[1734507466983,11.35599704,215.39,215.32,11.35599704]
[1734507467188,1.1606,215.4,215.34,11.35599704]
[1734507467878,11.35599704,215.42,215.35,11.35599704]
[1734507468081,1.5045,215.47,215.36,11.35599704]
[1734507468283,1.1603,215.46,215.37,11.35599704]
[1734507468486,11.35599704,215.45,215.38,11.35599704]
[1734507469594,11.35599704,215.48,215.41,11.35599704]
[1734507470594,11.35599704,215.47,215.4,11.35599704]
[1734507470901,0.12549,215.46,215.4,11.35599704]
[1734507472577,11.48148704,215.46,215.39,11.35599704]
[1734507474088,0.12549,215.46,215.4,11.35599704]
[1734507474897,11.35599704,215.48,215.41,11.35599704]
[1734507475074,11.35599704,215.49,215.42,11.35599704]
[1734507478299,11.35599704,215.5,215.43,11.35599704]
[1734507478479,11.48148704,215.49,215.42,17.79709704]
[1734507478678,11.48148704,215.49,215.42,6.4411]
[1734507480101,11.48148704,215.49,215.42,17.79709704]
[1734507480301,11.35599704,215.51,215.44,11.35599704]
[1734507480494,0.12549,215.5,215.44,11.35599704]
[1734507480681,0.12549,215.5,215.45,11.35599704]
[1734507480877,0.12549,215.5,215.46,11.35599704]
[1734507481106,11.35599704,215.53,215.46,11.35599704]
[1734507481980,0.12549,215.52,215.45,11.35599704]
[1734507482181,11.35599704,215.52,215.44,11.35599704]
[1734507483816,11.35599704,215.53,215.45,11.35599704]
[1734507484013,11.35599704,215.52,215.44,11.35599704]
[1734507487094,11.35599704,215.55,215.47,11.35599704]
[1734507487906,0.12549,215.54,215.47,11.35599704]
[1734507488705,12.91519704,215.57,215.5,11.35599704]
[1734507488901,11.35599704,215.58,215.5,11.35599704]
[1734507489291,0.12549,215.57,215.5,11.35599704]
[1734507489493,11.48148704,215.57,215.5,11.35599704]
[1734507491395,11.35599704,215.59,215.51,11.35599704]
[1734507491611,0.12549,215.58,215.51,11.35599704]
[1734507492415,20.0,215.61,215.53,11.35599704]
[1734507492623,20.0,215.61,215.46,8.1221]
[1734507492624,11.35599704,215.59,215.51,11.35599704]
[1734507492792,11.48148704,215.58,215.51,11.35599704]
[1734507493117,11.35599704,215.57,215.5,11.35599704]
[1734507493319,11.48148704,215.58,215.5,11.35599704]
[1734507493518,11.48148704,215.58,215.51,11.35599704]
[1734507493719,0.12549,215.6,215.51,11.35599704]
[1734507493916,0.12549,215.57,215.51,11.35599704]
[1734507496024,7.26975637,215.58,215.51,7.26975637]
[1734507497498,7.26975637,215.56,215.49,7.26975637]
[1734507498216,7.26975637,215.53,215.46,7.26975637]
[1734507498421,1.1598,215.55,215.42,6.4411]
[1734507498601,7.26975637,215.52,215.45,7.26975637]
[1734507498805,7.26975637,215.53,215.46,7.26975637]
[1734507500419,7.39524637,215.52,215.45,7.26975637]
[1734507501323,0.12549,215.52,215.46,7.26975637]
[1734507501896,7.39524637,215.54,215.47,7.26975637]
[1734507503093,7.26975637,215.55,215.48,7.26975637]
[1734507503294,7.26975637,215.55,215.47,7.26975637]
[1734507504613,7.26975637,215.53,215.43,0.69607734]
[1734507504810,7.26975637,215.53,215.46,7.26975637]
[1734507505616,0.12549,215.53,215.47,7.26975637]
[1734507506515,0.12549,215.52,215.46,7.26975637]
[1734507509302,7.26975637,215.54,215.47,7.26975637]
[1734507510135,7.26975637,215.55,215.47,7.26975637]
[1734507511928,7.26975637,215.54,215.47,7.26975637]
[1734507513028,0.12549,215.53,215.47,7.26975637]
[1734507513327,7.39524637,215.53,215.46,7.26975637]
[1734507513825,0.12549,215.54,215.47,7.26975637]
[1734507514610,7.39524637,215.54,215.46,7.26975637]
[1734507514819,0.12549,215.54,215.47,7.26975637]
[1734507515804,0.12549,215.54,215.47,9.23880094]
[1734507516001,0.12549,215.54,215.47,7.26975637]
[1734507517601,0.12549,215.54,215.43,0.69607734]
[1734507517807,0.12549,215.54,215.47,9.23894301]
[1734507518008,0.12549,215.54,215.47,7.26975637]
[1734507520026,7.26975637,215.53,215.45,7.26975637]
[1734507520222,7.26975637,215.53,215.46,1.96967779]
[1734507521037,7.26975637,215.53,215.45,7.26975637]
[1734507521231,7.26975637,215.53,215.46,1.96993163]
[1734507521915,7.26975637,215.53,215.46,1.97022113]
[1734507522323,7.26975637,215.53,215.45,7.26975637]
[1734507522526,7.26975637,215.53,215.46,1.97057002]
[1734507522714,1.1598,215.55,215.44,7.26975637]
[1734507522715,7.26975637,215.52,215.44,7.26975637]
[1734507522916,7.26975637,215.52,215.45,1.97058597]
[1734507523142,7.26975637,215.48,215.46,1.97058597]
[1734507523338,20.0,215.46,215.35,13.69005637]
[1734507523537,7.26975637,215.41,215.35,6.4203]
[1734507523868,0.12549,215.44,215.36,7.26975637]
[1734507524440,0.12549,215.45,215.36,7.26975637]
[1734507524637,0.12549,215.43,215.36,7.26975637]
[1734507525141,0.12549,215.42,215.36,7.26975637]
[1734507528241,7.26975637,215.42,215.35,6.4203]
[1734507528439,7.26975637,215.43,215.35,13.69005637]
[1734507528627,7.26975637,215.43,215.36,7.26975637]
[1734507531031,7.26975637,215.43,215.35,13.69005637]
[1734507532725,0.12549,215.42,215.36,7.26975637]
[1734507532914,0.12549,215.42,215.37,7.26975637]
[1734507533513,7.39524637,215.43,215.36,7.26975637]
[1734507539156,7.26975637,215.44,215.37,7.26975637]
[1734507540852,8.43015637,215.43,215.36,7.26975637]
[1734507541627,8.43015637,215.43,215.35,6.4203]
[1734507541848,7.26975637,215.41,215.3,6.1459]
[1734507542154,7.26975637,215.41,215.34,7.26975637]
[1734507542861,7.39524637,215.4,215.33,7.26975637]
[1734507543872,0.12549,215.38,215.32,7.26975637]
[1734507544028,0.12549,215.38,215.34,7.26975637]
[1734507547051,1.1604,215.44,215.37,7.26975637]
[1734507547349,7.26975637,215.46,215.39,7.26975637]
[1734507547829,7.26975637,215.45,215.38,7.26975637]
[1734507550857,0.12549,215.44,215.38,7.26975637]
[1734507553232,27.26975637,215.46,215.39,7.26975637]
[1734507553561,27.26975637,215.46,215.3,14.2738]
[1734507553562,1.6171,215.48,215.41,7.26975637]
[1734507553773,8.88685637,215.48,215.4,7.26975637]
[1734507553939,0.12549,215.47,215.4,7.26975637]
[1734507554533,7.26975637,215.49,215.42,7.26975637]
[1734507554761,8.42985637,215.5,215.42,7.26975637]
[1734507556140,27.26975637,215.49,215.42,7.26975637]
[1734507558439,0.12549,215.48,215.42,7.26975637]
[1734507560768,7.39524637,215.48,215.41,7.26975637]
[1734507561257,7.39524637,215.48,215.4,7.26975637]
[1734507563066,23.776884,215.47,215.4,7.26975637]
[1734507563646,23.776884,215.47,215.41,7.26975637]
[1734507564273,23.776884,215.45,215.33,20.0]
[1734507564444,23.776884,215.45,215.37,7.26975637]
[1734507566368,23.776884,215.45,215.39,7.26975637]
[1734507566843,0.12549,215.44,215.39,7.26975637]
[1734507567755,23.776884,215.47,215.4,7.26975637]
[1734507567966,23.776884,215.48,215.42,7.26975637]
[1734507568144,7.26975637,215.5,215.42,7.26975637]
[1734507568783,0.12549,215.49,215.43,7.26975637]
[1734507569284,23.902374,215.49,215.43,7.26975637]
[1734507570062,0.12549,215.49,215.43,7.26975637]
[1734507570299,31.17213037,215.5,215.43,7.26975637]
[1734507574707,23.776884,215.48,215.38,6.2837]
[1734507574937,23.776884,215.47,215.41,7.26975637]
[1734507578025,23.776884,215.49,215.43,7.26975637]
[1734507579745,0.12549,215.48,215.43,7.26975637]
[1734507581131,23.776884,215.52,215.47,7.26975637]
[1734507581446,14.29561207,215.56,215.47,7.26975637]
[1734507581447,1.6148,215.58,215.51,7.26975637]
[1734507581610,1.6148,215.58,215.52,7.26975637]
[1734507582263,0.12549,215.57,215.52,7.26975637]
[1734507582766,8.76260603,215.63,215.54,7.26975637]
[1734507582947,7.26975637,215.61,215.54,7.26975637]
[1734507583652,7.26975637,215.6,215.54,7.26975637]
[1734507584067,23.902374,215.6,215.54,7.26975637]
[1734507584651,23.902374,215.6,215.55,7.26975637]
[1734507584979,23.776884,215.62,215.55,7.26975637]
[1734507585152,0.12549,215.62,215.55,7.26975637]
[1734507585359,7.39524637,215.62,215.55,7.26975637]
[1734507585654,0.12549,215.62,215.55,7.26975637]
[1734507586241,0.12549,215.62,215.56,7.26975637]
[1734507586463,23.902374,215.62,215.55,7.26975637]
[1734507586843,31.17213037,215.62,215.55,7.26975637]
[1734507588559,23.776884,215.6,215.54,7.26975637]
[1734507588740,23.776884,215.6,215.55,7.26975637]
[1734507589166,23.776884,215.61,215.55,7.26975637]
[1734507590564,23.776884,215.62,215.55,7.26975637]
[1734507591278,31.04664037,215.62,215.55,7.26975637]
[1734507592265,29.07902548,215.71,215.56,14.96506915]
[1734507592266,1.5762,215.69,215.56,14.96506915]
[1734507592460,1.5762,215.69,215.64,7.26975637]
[1734507592669,1.5762,215.69,215.63,7.26975637]
[1734507593550,23.776884,215.68,215.63,7.26975637]
[1734507594155,1.5762,215.69,215.63,7.26975637]
[1734507594572,8.84595637,215.69,215.62,7.26975637]
[1734507594951,0.12549,215.68,215.63,7.26975637]
[1734507595669,23.902374,215.68,215.63,7.26975637]
[1734507597770,23.902374,215.7,215.64,7.26975637]
[1734507599974,23.902374,215.7,215.65,7.26975637]
[1734507600279,23.776884,215.71,215.65,7.26975637]
[1734507601769,23.776884,215.71,215.68,7.26975637]
[1734507602282,23.776884,215.71,215.67,7.26975637]
[1734507602789,23.776884,215.73,215.67,7.26975637]
[1734507603281,23.776884,215.73,215.64,6.306]
[1734507603282,23.776884,215.74,215.7,7.26975637]
[1734507603484,23.776884,215.74,215.69,7.26975637]
[1734507603687,31.5762,215.79,215.64,6.306]
[1734507603688,20.0,215.78,215.7,7.26975637]
[1734507603891,7.26975637,215.78,215.71,7.26975637]
[1734507604810,27.26975637,215.78,215.71,7.26975637]
[1734507605194,20.0,215.78,215.71,7.26975637]
[1734507605404,20.0,215.78,215.72,7.26975637]
[1734507605598,1.1583,215.82,215.75,7.26975637]
[1734507605772,7.26975637,215.83,215.76,7.26975637]
[1734507605966,0.12549,215.82,215.77,7.26975637]
[1734507606178,1.5802,215.89,215.8,7.26975637]
[1734507606402,1.5802,215.89,215.72,0.6951592]
[1734507606403,7.26975637,215.88,215.81,7.26975637]
[1734507607278,1.5802,215.89,215.83,7.26975637]
[1734507607479,8.84995637,215.89,215.82,7.26975637]
[1734507607674,7.39524637,215.88,215.81,7.26975637]